Cogmind - Beta 13 @@@ ROGUE MODE // 2024.07.08 @ 17:39:07 Player: ThatBishHoly Result: Destroyed by Y-45 Defender with Heavy Assault Rifle Performance ------------- Evolutions (2) 1000 Regions Visited (6) 1200 Robots Destroyed (46) 230 Value Destroyed (1174) 1174 Prototype IDs (3) 60 Alien Tech Used (0) 0 Bonus (300) 300 TOTAL SCORE: 3964 Bonus ------- Aligned with FarCom 300 Cogmind --------- Core Integrity 0/550 Matter 267/300 Energy 78/100 System Corruption 5% Temperature Cool (0) Movement Core (100) Ox1 Location -8/Materials Parts ------- > --- POWER (1) -------- (None) > --- PROPULSION (4) --- (None) > --- UTILITY (4) ------ Cooling System Visual Processing Unit Transport Network Coupler PSU Rigger > --- WEAPON (2) ------- (None) > --- INVENTORY (5) ---- Light Nuclear Core Heat Sink High-capacity Storage Unit Cargo Storage Unit Peak State ------------ > --- POWER ------------ (None) > --- PROPULSION ------- Aluminum Leg > --- UTILITY ---------- Cooling System Visual Processing Unit Transport Network Coupler PSU Rigger > --- WEAPON ----------- Particle Gun Shotgun > --- INVENTORY -------- Light Nuclear Core Heat Sink High-capacity Storage Unit Cargo Storage Unit [Rating: 18] Favorites ----------- Power Cooled Ion Engine Engine Cooled Ion Engine Power Core Light Nuclear Core Propulsion Light Treads Treads Light Treads Leg Aluminum Leg Utility Signal Interpreter Device PSU Rigger Storage Large Matter Pod Processor Signal Interpreter Protection Light Armor Plating Weapon Improved Light Cannon Energy Gun Medium Laser Energy Cannon Particle Cannon Ballistic Gun Assault Rifle Ballistic Cannon Improved Light Cannon Launcher Grenade Launcher Build | -11 -10 -9 -9 -9 -8 -8 ------- Run | Yrd Mat Mat Min Exi Min Mat Slots Evolved 4 | . . 2 . . . 2 Power . | . . . . . . . Propulsion 2 | . . 1 . . . 1 Utility 2 | . . 1 . . . 1 Weapon . | . . . . . . . Parts Attached 44 | 6 2 20 1 . 2 13 Power 3 | 1 . 1 . . . 1 Engine 2 | 1 . 1 . . . . Core 1 | . . . . . . 1 Reactor . | . . . . . . . Propulsion 12 | 2 . 8 . . . 2 Treads 11 | 2 . 8 . . . 1 Leg 1 | . . . . . . 1 Wheel . | . . . . . . . Hover . | . . . . . . . Flight . | . . . . . . . Utility 14 | 1 1 4 1 . . 7 Device 2 | . . . . . . 2 Storage 5 | 1 1 1 1 . . 1 Processor 3 | . . 1 . . . 2 Hackware . | . . . . . . . Protection 4 | . . 2 . . . 2 Artifact . | . . . . . . . Weapon 15 | 2 1 7 . . 2 3 Energy Gun 5 | 1 . 3 . . . 1 Energy Cannon 1 | . . 1 . . . . Ballistic Gun 4 | 1 . 1 . . . 2 Ballistic Cannon 4 | . . 2 . . 2 . Launcher 1 | . 1 . . . . . Special Weapon . | . . . . . . . Impact Weapon . | . . . . . . . Slashing Weapon . | . . . . . . . Piercing Weapon . | . . . . . . . Special Melee Weapon . | . . . . . . . Unidentified Prototypes 3 | . . 2 . . . 1 Parts Lost 22 | . . 3 1 . 5 13 Power 2 | . . . . . 1 1 Propulsion 6 | . . 1 . . 2 3 Utility 6 | . . 1 1 . . 4 Weapon 8 | . . 1 . . 2 5 Highest Loss Streak 6 | . . 1 1 . 5 6 To Critical Strikes . | . . . . . . . Average Slot Usage (%) 88 | . 97 96 98 100 65 44 Engine 9 | . 14 11 11 11 . . Treads 25 | . 28 30 33 33 11 4 Storage 17 | . 25 13 20 22 22 8 Processor 9 | . . 11 11 11 11 9 Protection 3 | . . 8 . . . 2 Energy Gun 2 | . 5 3 . . . 1 Energy Cannon 2 | . . 6 . . . . Ballistic Gun 5 | . 14 8 . . . 2 Ballistic Cannon 9 | . . 1 22 22 21 9 Launcher 1 | . 8 1 . . . . Naked Turns . | . . . . . . . Heaviest Build 59 | 12 16 57 59 59 51 54 Greatest Support 60 | 40 40 60 60 60 20 20 Greatest Overweight (x) 17 | . . . . . 2 17 Average Overweight (x) . | . . . . . 2 1 Largest Inventory Capacity 30 | 8 8 20 20 20 20 30 Average Capacity 13 | 7 8 8 20 20 20 13 Most Carried 11 | 5 4 9 10 9 9 11 Average Carried 6 | . 2 5 9 8 8 7 Final Capacity 20 | 8 8 20 20 20 20 5 Final Carried 10 | . 4 9 10 9 9 5 Class Distribution -------------------- 53% | Scavenger-Mutant 44% | Mutant Dominant Class ---------------- Mutant | -10/Materials Scavenger-Mutant | -9/Materials Scavenger-Mutant | -9/Mines Scavenger-Mutant | -9/Exiles Mutant | -8/Mines Mutant | -8/Materials Resources | -11 -10 -9 -9 -9 -8 -8 ----------- Run | Yrd Mat Mat Min Exi Min Mat Matter Collected 1172 | 191 215 508 125 . 76 57 Remotely . | . . . . . . . Salvage Created 1297 | 25 89 817 39 . 103 224 Parts 85 | 2 6 56 8 . 4 9 Haulers Intercepted 3 | . . 3 . . . . Recyclers Shooed 2 | . 1 1 . . . . Parts Field Recycled . | . . . . . . . Retrieved Matter . | . . . . . . . Parts Self-Destructed . | . . . . . . . Prevented . | . . . . . . . Kills | -11 -10 -9 -9 -9 -8 -8 ------- Run | Yrd Mat Mat Min Exi Min Mat Combat Hostiles Destroyed 38 | . 2 20 7 . 3 6 Guns 11 | . 1 7 . . . 3 Cannons 22 | . . 9 7 . 3 3 AOE 4 | . 1 3 . . . . Classes Destroyed 8 | 1 2 4 . . 1 . Worker 1 | 1 . . . . . . Tunneler 1 | . . 1 . . . . Hauler 3 | . . 3 . . . . Watcher 3 | . 1 2 . . . . Swarmer 16 | . . 9 7 . . . Grunt 17 | . 2 8 . . 2 5 Brawler 2 | . . . . . 1 1 Sentry 3 | . . 3 . . . . Best Kill Streak 7 | 1 2 7 4 . 2 3 Combat Bots Only 7 | . 2 7 4 . 2 3 Max Kills in Single Turn 3 | 1 1 3 1 . 1 1 Gunslinging . | . . . . . . . Exploded 2 | . 1 2 . . . . Melee . | . . . . . . . Uniques/NPCs Destroyed . | . . . . . . . Combat | -11 -10 -9 -9 -9 -8 -8 -------- Run | Yrd Mat Mat Min Exi Min Mat Hostile Shots Fired 349 | . 8 131 42 . 33 135 Missed 102 | . 4 50 12 . 5 31 Damage Taken 3617 | . 167 1026 242 . 476 1706 Core 838 | . 36 114 22 . 111 555 Absorbed by Shields . | . . . . . . . Redirected to Shielding 50 | . . 42 8 . . . Core Remaining (%) 74 | 100 85 . . . 38 . Volleys Fired 139 | 1 13 71 15 . 12 27 Largest 2 | 2 2 2 2 . 2 2 Hottest 124 | 70 70 124 78 . 78 78 Shots Fired 253 | 2 26 138 30 . 23 34 Gun 119 | 2 21 84 . . . 12 Cannon 125 | . . 50 30 . 23 22 Launcher 9 | . 5 4 . . . . Special . | . . . . . . . Kinetic 159 | 1 13 58 30 . 23 34 Thermal 85 | 1 8 76 . . . . Explosive 9 | . 5 4 . . . . Electromagnetic . | . . . . . . . Robot Hit Streak 15 | 2 6 11 3 . 7 15 Robot Miss Streak 6 | . 1 6 4 . 2 3 Penetration Max . | . . . . . . . Secondary Targets . | . . . . . . . Shots Hit Robots 152 | 2 10 83 15 . 13 29 Core Hits 71 | 1 7 32 6 . 6 19 Critical Kills 1 | . . 1 . . . . Critical Parts Destroyed . | . . . . . . . Critical Strikes 5 | . . 2 . . 1 2 Burn 1 | . . 1 . . . . Meltdown 1 | . . 1 . . . . Blast 3 | . . . . . 1 2 Melee Attacks . | . . . . . . . Impact . | . . . . . . . Slashing . | . . . . . . . Piercing . | . . . . . . . Sneak Attacks . | . . . . . . . Combat Hostiles . | . . . . . . . Follow-up Attacks . | . . . . . . . Damage Inflicted 3107 | 27 205 1611 318 . 296 650 Guns 1058 | 27 91 687 . . . 253 Cannons 1678 | . . 696 318 . 296 368 Explosions 328 | . 108 220 . . . . Melee . | . . . . . . . Ramming 43 | . 6 8 . . . 29 Kinetic 1750 | 15 79 421 318 . 296 621 Thermal 986 | 12 12 962 . . . . Explosive 328 | . 108 220 . . . . Electromagnetic . | . . . . . . . Impact . | . . . . . . . Slashing . | . . . . . . . Piercing . | . . . . . . . Highest Corruption 5 | . . . . . 3 5 Average Corruption 3 | . . . . . 3 3 Corruption Purged . | . . . . . . . Corruption Blocked . | . . . . . . . Effects 7 | . . . . . 5 2 Message Errors 3 | . . . . . 3 . Heat Flow Errors 2 | . . . . . . 2 Energy Discharges 1 | . . . . . 1 . Misfires 1 | . . . . . 1 . Overload Shots . | . . . . . . . Overflow Damage 41 | . . 17 24 . . . Projectiles 24 | . . . 24 . . . Explosions 17 | . . 17 . . . . Melee . | . . . . . . . Knockbacks 18 | . . . 4 . 6 8 Impact . | . . . . . . . Kinetic 17 | . . . 4 . 6 7 Secondary 1 | . . . . . . 1 Self-Inflicted Damage 129 | . 113 13 . . . 3 Shots 5 | . 4 1 . . . . Rammed 16 | . 1 3 . . . 12 Targets Rammed 24 | . 1 3 . . . 20 Kicked 8 | . . . . . . 8 Crushed . | . . . . . . . Highest Temperature 280 | 9 54 241 18 . 147 280 Average Temperature 63 | 6 21 72 8 . 93 71 Received Heat Transfer 1545 | . 30 336 . . 243 936 Effects 4 | . . 2 . . . 2 Interference 4 | . . 2 . . . 2 Siege Activations . | . . . . . . . Robots Corrupted . | . . . . . . . Combat Hostiles . | . . . . . . . Parts Fried . | . . . . . . . Impact Corruptions . | . . . . . . . Robots Melted 1 | . . 1 . . . . Combat Hostiles 1 | . . 1 . . . . Parts Melted 4 | . . 4 . . . . Heat Transferred 2109 | 37 37 2035 . . . . Parts Sabotaged . | . . . . . . . Parts Stolen . | . . . . . . . Parts Stripped . | . . . . . . . Power Chain Reactions . | . . . . . . . Alert | -11 -10 -9 -9 -9 -8 -8 ------- Run | Yrd Mat Mat Min Exi Min Mat Peak Influence 330 | 5 139 330 310 . 51 80 Initial 128 | . 3 . 128 . . 19 Average 108 | . 63 136 277 . 48 40 Maximum Alert Level 1 | . . 1 1 . . . Low Security (%) 79 | 100 100 72 12 . 100 100 Level 1 20 | . . 27 87 . . . Level 2 . | . . . . . . . Level 3 . | . . . . . . . Level 4 . | . . . . . . . Level 5 . | . . . . . . . High Security . | . . . . . . . Max Security . | . . . . . . . Squads Dispatched 2 | . 1 1 . . . . Investigation . | . . . . . . . Extermination . | . . . . . . . Reinforcement 2 | . 1 1 . . . . Assault . | . . . . . . . Garrison . | . . . . . . . Intercept . | . . . . . . . Searches Triggered . | . . . . . . . Construction Impeded . | . . . . . . . Haulers Reinforced . | . . . . . . . Active Scanning Responses . | . . . . . . . Cargo Convoy Interrupts . | . . . . . . . Stealth | -11 -10 -9 -9 -9 -8 -8 --------- Run | Yrd Mat Mat Min Exi Min Mat Distress Signals 3 | . . 2 . . . 1 Communications Jammed . | . . . . . . . Distress Signals . | . . . . . . . Times Spotted 53 | . 4 28 7 . 3 11 Peak Tracking Total 9 | . 2 9 4 . 3 6 Tactical Retreats 1 | . . 1 . . . . Traps | -11 -10 -9 -9 -9 -8 -8 ------- Run | Yrd Mat Mat Min Exi Min Mat Traps Triggered 1 | . . 1 . . . . Indirectly . | . . . . . . . Trap Hack Attempts . | . . . . . . . Triggered . | . . . . . . . Disarmed . | . . . . . . . Reprogrammed . | . . . . . . . Reused . | . . . . . . . Traps Extracted . | . . . . . . . Installed . | . . . . . . . Triggered . | . . . . . . . Machines | -11 -10 -9 -9 -9 -8 -8 ---------- Run | Yrd Mat Mat Min Exi Min Mat Machines Disabled 5 | . 2 2 1 . . . Max in Single Turn 1 | . 1 1 1 . . . Machines Repaired . | . . . . . . . Machines Dismantled . | . . . . . . . Machines Sabotaged . | . . . . . . . Overloaded Fab Kills . | . . . . . . . Hacking | -11 -10 -9 -9 -9 -8 -8 --------- Run | Yrd Mat Mat Min Exi Min Mat Machines Accessed 1 | . 1 . . . . . Terminals 1 | . 1 . . . . . Fabricators . | . . . . . . . Repair Stations . | . . . . . . . Recycling Units . | . . . . . . . Scanalyzers . | . . . . . . . Garrison Access . | . . . . . . . Total Hacks 3 | . 3 . . . . . Successful 1 | . 1 . . . . . Failed 2 | . 2 . . . . . Catastrophic . | . . . . . . . Database Lockouts . | . . . . . . . Manual 1 | . . . . 1 . . Terminals 3 | . 3 . . . . . Fabricators . | . . . . . . . Repair Stations . | . . . . . . . Recycling Units . | . . . . . . . Scanalyzers . | . . . . . . . Garrison Access . | . . . . . . . Terminal Hacks 1 | . 1 . . . . . Zone Layout 1 | . 1 . . . . . Fabricator Hacks . | . . . . . . . Repair Station Hacks . | . . . . . . . Recycling Unit Hacks . | . . . . . . . Scanalyzer . | . . . . . . . Garrison Access Hacks . | . . . . . . . Unauthorized Hacks . | . . . . . . . Terminals . | . . . . . . . Fabricators . | . . . . . . . Repair Stations . | . . . . . . . Recycling Units . | . . . . . . . Scanalyzers . | . . . . . . . Garrison Access . | . . . . . . . Data Cores Recovered . | . . . . . . . Used . | . . . . . . . Hacking Detections 1 | . 1 . . . . . Full Trace Events . | . . . . . . . Feedback Events . | . . . . . . . Feedback Blocked . | . . . . . . . Robot Schematics Acquired . | . . . . . . . Robots Built . | . . . . . . . Authchips . | . . . . . . . Time . | . . . . . . . Total Robot Build Rating . | . . . . . . . Part Schematics Acquired . | . . . . . . . Parts Built . | . . . . . . . Authchips . | . . . . . . . Time . | . . . . . . . Total Part Build Rating . | . . . . . . . Parts Repaired . | . . . . . . . Time . | . . . . . . . Parts Recycled . | . . . . . . . Recycled Matter . | . . . . . . . Retrieved Matter . | . . . . . . . Retrieved Components . | . . . . . . . Parts Scanalyzed . | . . . . . . . Part Schematics Acquired . | . . . . . . . Parts Damaged . | . . . . . . . Bothacking | -11 -10 -9 -9 -9 -8 -8 ------------ Run | Yrd Mat Mat Min Exi Min Mat Used RIF Installer . | . . . . . . . Robots Hacked . | . . . . . . . Non-combat . | . . . . . . . Combat . | . . . . . . . Robot Hacks Applied . | . . . . . . . Relay Couplers Released . | . . . . . . . Fabnet Peak Effective % . | . . . . . . . Robots Rewired . | . . . . . . . Allies Hacked . | . . . . . . . Hacks Repelled . | . . . . . . . Allies | -11 -10 -9 -9 -9 -8 -8 -------- Run | Yrd Mat Mat Min Exi Min Mat Total Allies . | . . . . . . . Largest Group . | . . . . . . . Highest-Rated Group . | . . . . . . . Highest-Rated Ally . | . . . . . . . Total Orders . | . . . . . . . Ally Attacks . | . . . . . . . Total Damage . | . . . . . . . Kills . | . . . . . . . Allies Corrupted . | . . . . . . . Allies Melted . | . . . . . . . Intel | -11 -10 -9 -9 -9 -8 -8 ------- Run | Yrd Mat Mat Min Exi Min Mat Robot Analysis Total . | . . . . . . . Derelict Logs Recovered . | . . . . . . . Drone Launches . | . . . . . . . Drone Recoveries . | . . . . . . . Exploration | -11 -10 -9 -9 -9 -8 -8 ------------- Run | Yrd Mat Mat Min Exi Min Mat Turns Passed 2986 | 105 422 1131 230 466 394 238 Spaces Moved 1407 | 68 234 519 115 291 112 68 Core 56 | 16 . . . . . 40 Treads 1345 | 52 234 519 115 291 112 22 Legs 6 | . . . . . . 6 Wheels . | . . . . . . . Hover . | . . . . . . . Flight . | . . . . . . . Fastest Speed 50 | 50 160 160 160 160 320 100 Average Speed 172 | 134 160 160 160 160 320 190 Slowest Speed 900 | 160 160 160 160 160 320 900 Overloaded Moves . | . . . . . . . Propulsion Burnouts . | . . . . . . . Robots Hopped . | . . . . . . . Cave-ins Triggered . | . . . . . . . Exploration Rate (%) 26 | 4 36 32 8 62 33 11 Regions Visited 6 Branch Regions 3 Pre-discovered Areas . | . . . . . . . Known Exits Taken 4 | . . 1 1 1 1 . Unknown Exits Taken 2 | 1 1 . . . . . Scrap Searched 1 | . . . 1 . . . Spaces Dug . | . . . . . . . Terrain Destroyed 71 | . 46 22 2 . 1 . Melee . | . . . . . . . Projectile 3 | . . . 2 . 1 . AOE 68 | . 46 22 . . . . Terrain Rammed . | . . . . . . . Walls Destroyed . | . . . . . . . Machines Disabled . | . . . . . . . Actions | -11 -10 -9 -9 -9 -8 -8 --------- Run | Yrd Mat Mat Min Exi Min Mat Total 1700 | 79 255 682 131 293 127 133 Wait 35 | . 1 34 . . . . Move 1401 | 67 233 518 114 290 111 68 Hop . | . . . . . . . Pick Up 39 | 5 5 21 1 1 2 4 Fast Attach 5 | 1 . 1 . . . 3 Attach 24 | 5 1 6 1 . 2 9 Detach 1 | . . . . . . 1 Swap 15 | . 1 13 . . . 1 Drop 17 | . . 15 . 2 . . Fire 139 | 1 13 71 15 . 12 27 Melee . | . . . . . . . Ram 12 | . . . . . . 12 Kick 8 | . . . . . . 8 Crush 4 | . 1 3 . . . . Escape Stasis . | . . . . . . . Rewire . | . . . . . . . Trap . | . . . . . . . Miscellaneous . | . . . . . . . Route ------- -11/Scrapyard -10/Materials -9/Materials -9/Mines -9/Exiles -8/Mines -8/Materials (discovered 1 exit: [*Sto]) History --------- Turn | Location | Event 11 | -11/Scrapyard | Discovered new exit (range 16) 106 | -11/Scrapyard | Entered Materials 303 | -10/Materials | Build established: Mutant 345 | -10/Materials | Discovered new exit (range 7) 528 | -10/Materials | Entered another Materials area 528 | -9/Materials | Evolved 2 slots: Propulsion x1, Utility x1 1053 | -9/Materials | Build established: Scavenger-Mutant 1377 | -9/Materials | Destroyed 7 combat bots 1530 | -9/Materials | Discovered new exit (range 8) 1654 | -9/Materials | Identified exit to Mines 1659 | -9/Materials | Entered Mines 1798 | -9/Mines | Deemed a non-threat by the Exiles lab entrance 1799 | -9/Mines | Discovered new exit (range 5) 1806 | -9/Mines | Identified exit to Exiles 1889 | -9/Mines | Entered Exiles 1943 | -9/Exiles | Met 8R-AWN 1977 | -9/Exiles | Met EX-HEX 2042 | -9/Exiles | Met EX-BIN 2062 | -9/Exiles | Aligned with FarCom system 2063 | -9/Exiles | Given EX-Vault access code 2108 | -9/Exiles | Opened EX-Vault 2116 | -9/Exiles | Found Prototype Device 2149 | -9/Exiles | Warned to stay clear of 0b10 Research branches 2202 | -9/Exiles | Met EX-DEC 2333 | -9/Exiles | Discovered new exit (range 11) 2354 | -9/Exiles | Identified exit to Mines 2355 | -9/Exiles | Left Exiles lab with PSU Rigger 2355 | -9/Exiles | Entered Mines 2374 | -8/Mines | Core integrity fell below 50% 2410 | -8/Mines | Lost 5 parts (1p2n2w) 2649 | -8/Mines | Build established: Mutant 2681 | -8/Mines | Discovered new exit (range 15) 2742 | -8/Mines | Identified exit to Materials 2749 | -8/Mines | Entered Materials 2749 | -8/Materials | Evolved 2 slots: Propulsion x1, Utility x1 2842 | -8/Materials | Lost 4 parts (1n3u) 2890 | -8/Materials | Identified PSU Rigger 2891 | -8/Materials | Core integrity fell below 50% 2905 | -8/Materials | Discovered new exit (range 12) 2909 | -8/Materials | Core integrity fell below 20% 2919 | -8/Materials | Lost 6 parts (1p1n1u3w) 2987 | -8/Materials | Destroyed by Y-45 Defender with Heavy Assault Rifle Last Messages --------------- 02947_ Kicked G-50 Soldier. 02947_ R-06 Scavenger collects Lgt. Nuclear Core. 02948_ Kicked G-50 Soldier. 02953_ Kicked G-50 Soldier out of the way. 02954_ Kicked G-50 Soldier. 02956_ Aluminum Leg destroyed. 02956_ Slammed into G-50 Soldier. 02958_ Destabilizing: System corrupted (+2). 02960_ Slammed into G-50 Soldier. 02966_ Particle Gun destroyed. 02966_ Slammed into G-50 Soldier. 02966_ Shotgun broken. 02966_ Destabilizing: Short circuit. 02968_ System corrupted: Heat flow error (+214). 02968_ Slammed into G-50 Soldier. 02969_ Visual Processing Unit broken. 02969_ Destabilizing: Short circuit. 02975_ K-01 Serf collects debris. 02975_ Broken Shotgun destroyed. 02979_ K-01 Serf collects debris. Map ----- +----------------------------------------------------+ | ??????????????????????????????????????????????? | | ??????????????????????????????????????????????? | | ??????????????????????????????????????????????? | | ??????????????????????????????????????????????? | | ??????????????????????????????????????????????? | | ??????????????????????????????????????????????? | | ??????????????????????????????????????????????? | | ??????????????????????????????#???????????????? | | ????????????????????????????? #???????????????? | | ????????????????????????????" #???????????????? | | ??????????????????????????? ????????????????? | | ????????????????####+######/########/##???????? | | ??????????#+##### %% % ??????? | | ??????????# %%% ??????? | | ?????????????# %%u ??????? | | ?????????????# """%%###########???????????? | | ???########### """ # #???????????? | | ???# # """ # |#???????????? | | ???# # # % """ #???????????? | | ???? # # """" [#???????????? | | ??????"""""" Y g """ u/ """" #???????????? | | ??????"""""" # """ #% """"" #???????????? | | ??????"""""" ### """ # %""" *#???????????? | | ??????"""""" #?# # #???????????? | | ??????"""""" #?# ###########???????????? | | ??????######/#?# """@ #?????????????????????? | | ???????????# #?# """ #?????????????????????? | | ????????####+###k """ #?????????????????????? | | ????????# # ##????????????????????? | | ????????# ! # ####### #????????? | | ????????# +%% #????????? | | ????????# !! ##### a < #????????? | | ????????# ! #???# #????????? | | ????????# #???# ####### #????????? | | ????????########???#######???????? ##????????? | | ????????????????????????????????????#?????????? | | ??????????????????????????????????????????????? | | ??????????????????????????????????????????????? | | ??????????????????????????????????????????????? | | ??????????????????????????????????????????????? | | ??????????????????????????????????????????????? | | ??????????????????????????????????????????????? | | ??????????????????????????????????????????????? | | ??????????????????????????????????????????????? | | ??????????????????????????????????????????????? | | ??????????????????????????????????????????????? | | ??????????????????????????????????????????????? | | ??????????????????????????????????????????????a | | ??????????????????????????????????????????????? | | ??????????????????????????????????????????????? | +----------------------------------------------------+ Best States ------------- Heat Dissipation 53 Energy Generation 14 Energy Capacity 280 Matter Stores 450 Matter Capacity 450 Sight Range 18 Terrain Scan Density 10 Armor Coverage 150 Propulsion Shielding 33 Evasion (%) 50 Recoil Reduction 3 Item Schematics ----------------- None Robot Schematics ------------------ None Fabricated ------------ Nothing Alien Tech Used ----------------- None Achievements -------------- None Challenges ------------ None Game ------ Seed SwarmMetaFragment Manual? 0 Play Time 00:25:32 Cumulative 32.6 hours Start 2024.07.08 @ 14:06:54 End 2024.07.08 @ 17:39:07 Sessions 1 Manual Loads 0 Difficulty Rogue Special Mode None Game No. 103 Rogue 103 Adventurer 0 Explorer 0 Win Type - Total 0 Types 0/0/0/0/0/0/0/0/0 Lore% 18 Gallery% 33 Achievement% 23 Wizard Run 0 Options --------- Layout 0 ASCII 0 Keyboard 0 Movement Arrows Keybinds 0 Fullscreen 1 Font 12/Smallcaps Map View 38x28 Zoom Use 99% Tactical HUD 1 Map Filters NONE Filters NONE Steam SD RUN: 2032cfbd-66b0-454c-b9f2-9e8f40cb138b